[Event "Early-Titled-Tuesday-Blitz-April-23-2024"]
[Site "Chess.com"]
[Date "2024.04.23"]
[Round "7"]
[White "Golubovsky"]
[Black "samidescalona2002"]
[Result "1-0"]
[WhiteElo "2521"]
[BlackElo "2715"]
[TimeControl "180+1"]
[EndTime "9:19:27 PDT"]
[Termination "Golubovsky won by resignation"]

1. c4 {[%clk 0:03:00.9]} 1... Nf6 {[%clk 0:02:56]} 2. Nc3 {[%clk 0:02:59.7]}
2... g6 {[%clk 0:02:54.9]} 3. e4 {[%clk 0:02:59.5]} 3... e5 {[%clk 0:02:52.3]}
4. Nf3 {[%clk 0:02:57.5]} 4... Bg7 {[%clk 0:02:50.2]} 5. g3 {[%clk 0:02:55.1]}
5... O-O {[%clk 0:02:49.4]} 6. Bg2 {[%clk 0:02:55.3]} 6... d6 {[%clk 0:02:47]}
7. d4 {[%clk 0:02:51.4]} 7... Nc6 {[%clk 0:02:39.3]} 8. d5 {[%clk 0:02:45.1]}
8... Nd4 {[%clk 0:02:18.5]} 9. Be3 {[%clk 0:02:35.3]} 9... Bg4 {[%clk
0:01:49.3]} 10. h3 {[%clk 0:02:33.1]} 10... Bxf3 {[%clk 0:01:47.9]} 11. Bxf3
{[%clk 0:02:33.3]} 11... c5 {[%clk 0:01:48.8]} 12. dxc6 {[%clk 0:02:28.7]} 12...
bxc6 {[%clk 0:01:48.3]} 13. O-O {[%clk 0:02:17]} 13... Rb8 {[%clk 0:01:41.7]}
14. b3 {[%clk 0:02:10.6]} 14... Qa5 {[%clk 0:01:36.9]} 15. Rc1 {[%clk
0:02:08.7]} 15... Nd7 {[%clk 0:01:32.9]} 16. Bg2 {[%clk 0:01:59.9]} 16... Nc5
{[%clk 0:00:58.7]} 17. f4 {[%clk 0:01:57.9]} 17... Bh6 {[%clk 0:00:37.1]} 18.
Qd2 {[%clk 0:01:54.6]} 18... Qc7 {[%clk 0:00:27.9]} 19. Bxd4 {[%clk 0:01:50.2]}
19... exd4 {[%clk 0:00:28.1]} 20. Qxd4 {[%clk 0:01:51.1]} 20... Bg7 {[%clk
0:00:24.7]} 21. Qd2 {[%clk 0:01:50.8]} 21... Rfd8 {[%clk 0:00:20.6]} 22. Rcd1
{[%clk 0:01:47.9]} 22... Qe7 {[%clk 0:00:18]} 23. Rfe1 {[%clk 0:01:40.5]} 23...
h5 {[%clk 0:00:17.5]} 24. h4 {[%clk 0:01:39.7]} 24... a5 {[%clk 0:00:17.6]} 25.
Qc2 {[%clk 0:01:30.6]} 25... a4 {[%clk 0:00:17.6]} 26. Nxa4 {[%clk 0:01:28.3]}
26... Nxa4 {[%clk 0:00:17.7]} 27. bxa4 {[%clk 0:01:27.9]} 27... Rb2 {[%clk
0:00:18.2]} 28. Qd3 {[%clk 0:01:23.1]} 28... Rxa2 {[%clk 0:00:18.5]} 29. c5
{[%clk 0:01:22.6]} 29... Qa7 {[%clk 0:00:17]} 30. Qe3 {[%clk 0:01:10]} 30...
Rxa4 {[%clk 0:00:17.1]} 31. e5 {[%clk 0:01:05.9]} 31... d5 {[%clk 0:00:17.1]}
32. e6 {[%clk 0:01:04.5]} 32... f5 {[%clk 0:00:13.5]} 33. e7 {[%clk 0:00:57.5]}
33... Re8 {[%clk 0:00:12]} 34. Qe6+ {[%clk 0:00:57.4]} 34... Kh7 {[%clk
0:00:12.6]} 35. Qxc6 {[%clk 0:00:39.1]} 35... Rxe7 {[%clk 0:00:12.4]} 36. Rxe7
{[%clk 0:00:39]} 36... Qxe7 {[%clk 0:00:11.1]} 37. Qxa4 {[%clk 0:00:39.7]} 1-0

[Event "Early-Titled-Tuesday-Blitz-April-23-2024"]
[Site "Chess.com"]
[Date "2024.04.23"]
[Round "7"]
[White "GlennTipton"]
[Black "Thebigsqueeze"]
[Result "1-0"]
[WhiteElo "2496"]
[BlackElo "2313"]
[TimeControl "180+1"]
[EndTime "9:19:28 PDT"]
[Termination "GlennTipton won by resignation"]

1. e4 {[%clk 0:01:35.8]} 1... e6 {[%clk 0:02:58.5]} 2. d4 {[%clk 0:01:35.9]}
2... d5 {[%clk 0:02:58.7]} 3. Nc3 {[%clk 0:01:36.1]} 3... Nf6 {[%clk 0:02:58.7]}
4. e5 {[%clk 0:01:36.2]} 4... Nfd7 {[%clk 0:02:58.6]} 5. f4 {[%clk 0:01:36.9]}
5... c5 {[%clk 0:02:58.7]} 6. Nf3 {[%clk 0:01:37.6]} 6... Nc6 {[%clk 0:02:59.3]}
7. Be3 {[%clk 0:01:38]} 7... Qb6 {[%clk 0:03:00]} 8. a3 {[%clk 0:01:37.2]} 8...
a6 {[%clk 0:02:57.9]} 9. Be2 {[%clk 0:01:33.3]} 9... cxd4 {[%clk 0:02:50.1]} 10.
Nxd4 {[%clk 0:01:33.3]} 10... Nxd4 {[%clk 0:02:49.9]} 11. Bxd4 {[%clk
0:01:33.1]} 11... Bc5 {[%clk 0:02:50.5]} 12. Na4 {[%clk 0:01:27.8]} 12... Qa5+
{[%clk 0:02:39.5]} 13. c3 {[%clk 0:01:27.9]} 13... Bxd4 {[%clk 0:02:39.4]} 14.
Qxd4 {[%clk 0:01:28.8]} 14... O-O {[%clk 0:02:35.7]} 15. O-O {[%clk 0:01:13.8]}
15... b5 {[%clk 0:02:18.5]} 16. Nc5 {[%clk 0:01:12]} 16... Qb6 {[%clk
0:02:18.8]} 17. Nxd7 {[%clk 0:01:09]} 17... Qxd4+ {[%clk 0:02:18.8]} 18. cxd4
{[%clk 0:01:09.9]} 18... Bxd7 {[%clk 0:02:18.3]} 19. Rfc1 {[%clk 0:01:10.2]}
19... Rfc8 {[%clk 0:02:18.9]} 20. Kf2 {[%clk 0:01:10.6]} 20... Kf8 {[%clk
0:02:14.5]} 21. Ke3 {[%clk 0:01:10.4]} 21... Ke7 {[%clk 0:02:13.5]} 22. Rc5
{[%clk 0:01:03.6]} 22... Rxc5 {[%clk 0:02:02.5]} 23. dxc5 {[%clk 0:01:04.5]}
23... Rb8 {[%clk 0:02:02.3]} 24. Rc1 {[%clk 0:00:55]} 24... Bc6 {[%clk
0:02:01.4]} 25. b3 {[%clk 0:00:49.2]} 25... f6 {[%clk 0:01:55.8]} 26. Kd4 {[%clk
0:00:48.2]} 26... fxe5+ {[%clk 0:01:55.8]} 27. Kxe5 {[%clk 0:00:48.1]} 27... Rf8
{[%clk 0:01:55.4]} 28. g4 {[%clk 0:00:47.3]} 28... g6 {[%clk 0:01:48.3]} 29. b4
{[%clk 0:00:41.2]} 29... h5 {[%clk 0:01:44.9]} 30. h3 {[%clk 0:00:33.3]} 30...
hxg4 {[%clk 0:01:36.8]} 31. hxg4 {[%clk 0:00:34.2]} 31... Rh8 {[%clk 0:01:37.3]}
32. Bd3 {[%clk 0:00:31]} 32... Rh4 {[%clk 0:01:36.4]} 33. Rg1 {[%clk 0:00:29.5]}
33... Kf7 {[%clk 0:01:35.9]} 34. a4 {[%clk 0:00:29.1]} 34... Rh3 {[%clk
0:01:31.4]} 35. axb5 {[%clk 0:00:26.3]} 35... axb5 {[%clk 0:01:31.7]} 36. Kd6
{[%clk 0:00:21]} 36... Be8 {[%clk 0:01:27]} 37. Rd1 {[%clk 0:00:18.2]} 37... Rf3
{[%clk 0:01:21.8]} 38. c6 {[%clk 0:00:17.8]} 38... Bxc6 {[%clk 0:01:22.2]} 39.
Kxc6 {[%clk 0:00:18.4]} 39... Rxf4 {[%clk 0:01:22.7]} 40. Kxb5 {[%clk
0:00:18.9]} 40... Rxg4 {[%clk 0:01:22.3]} 41. Kc5 {[%clk 0:00:19.4]} 41... Ke7
{[%clk 0:01:19.2]} 42. b5 {[%clk 0:00:20.3]} 42... Kd7 {[%clk 0:01:19]} 43. b6
{[%clk 0:00:20.1]} 43... Rg2 {[%clk 0:01:19]} 44. Bb5+ {[%clk 0:00:18.2]} 44...
Kc8 {[%clk 0:01:15.7]} 45. Ba6+ {[%clk 0:00:18.4]} 45... Kb8 {[%clk 0:01:14.6]}
46. Rf1 {[%clk 0:00:17.7]} 46... Rc2+ {[%clk 0:01:14.1]} 47. Kd6 {[%clk
0:00:17.9]} 1-0

[Event "Early-Titled-Tuesday-Blitz-April-23-2024"]
[Site "Chess.com"]
[Date "2024.04.23"]
[Round "7"]
[White "dvglko"]
[Black "EdmundPlayer"]
[Result "1-0"]
[WhiteElo "2440"]
[BlackElo "2266"]
[TimeControl "180+1"]
[EndTime "9:19:28 PDT"]
[Termination "dvglko won by checkmate"]

1. Nf3 {[%clk 0:03:00.9]} 1... Nf6 {[%clk 0:02:37.3]} 2. b3 {[%clk 0:03:00.9]}
2... b6 {[%clk 0:02:34.9]} 3. Bb2 {[%clk 0:03:01.8]} 3... Bb7 {[%clk 0:02:34.9]}
4. c4 {[%clk 0:03:00.3]} 4... d6 {[%clk 0:02:31.1]} 5. d4 {[%clk 0:02:58.5]}
5... Nbd7 {[%clk 0:02:29.8]} 6. Nbd2 {[%clk 0:02:56.7]} 6... Ne4 {[%clk
0:02:23.5]} 7. d5 {[%clk 0:02:43.7]} 7... Nxd2 {[%clk 0:02:21]} 8. Qxd2 {[%clk
0:02:44.6]} 8... Nf6 {[%clk 0:02:18.6]} 9. e3 {[%clk 0:02:41.2]} 9... e5 {[%clk
0:02:12.6]} 10. dxe6 {[%clk 0:02:35.1]} 10... fxe6 {[%clk 0:02:12.2]} 11. Nd4
{[%clk 0:02:25.3]} 11... Qd7 {[%clk 0:02:08.2]} 12. f3 {[%clk 0:02:12.8]} 12...
e5 {[%clk 0:02:05.1]} 13. Nb5 {[%clk 0:02:10]} 13... Be7 {[%clk 0:01:54.5]} 14.
Bd3 {[%clk 0:02:01.7]} 14... e4 {[%clk 0:01:36.4]} 15. Be2 {[%clk 0:01:43.9]}
15... exf3 {[%clk 0:01:25.5]} 16. Bxf3 {[%clk 0:01:42.3]} 16... Bxf3 {[%clk
0:01:25.1]} 17. gxf3 {[%clk 0:01:43.2]} 17... a6 {[%clk 0:01:23.3]} 18. Nd4
{[%clk 0:01:39.2]} 18... O-O {[%clk 0:01:08.5]} 19. O-O-O {[%clk 0:01:33.1]}
19... Rf7 {[%clk 0:01:04.6]} 20. e4 {[%clk 0:01:27.5]} 20... a5 {[%clk
0:00:53.6]} 21. a4 {[%clk 0:01:25.6]} 21... Nh5 {[%clk 0:00:34.1]} 22. Nf5
{[%clk 0:01:08]} 22... Bf6 {[%clk 0:00:32.5]} 23. Qd5 {[%clk 0:00:53.4]} 23...
Re8 {[%clk 0:00:21]} 24. Nh6+ {[%clk 0:00:32]} 24... gxh6 {[%clk 0:00:18.4]} 25.
Qxh5 {[%clk 0:00:31]} 25... Bxb2+ {[%clk 0:00:18.2]} 26. Kxb2 {[%clk 0:00:31]}
26... Rxf3 {[%clk 0:00:16]} 27. Rhg1+ {[%clk 0:00:26.3]} 27... Kh8 {[%clk
0:00:15.7]} 28. Qxf3 {[%clk 0:00:25.1]} 28... Qe7 {[%clk 0:00:12.7]} 29. Rdf1
{[%clk 0:00:20.6]} 29... Qe5+ {[%clk 0:00:10.7]} 30. Qc3 {[%clk 0:00:21.1]}
30... Re7 {[%clk 0:00:09.2]} 31. Rf8# {[%clk 0:00:20.4]} 1-0

[Event "Early-Titled-Tuesday-Blitz-April-23-2024"]
[Site "Chess.com"]
[Date "2024.04.23"]
[Round "7"]
[White "carloseduar100"]
[Black "maurovargas01"]
[Result "1-0"]
[WhiteElo "2212"]
[BlackElo "1884"]
[TimeControl "180+1"]
[EndTime "9:19:30 PDT"]
[Termination "carloseduar100 won by resignation"]

1. d4 {[%clk 0:02:59.3]} 1... Nf6 {[%clk 0:02:57.7]} 2. Bg5 {[%clk 0:02:59.4]}
2... h6 {[%clk 0:02:54.6]} 3. Bxf6 {[%clk 0:02:58.7]} 3... exf6 {[%clk
0:02:52.4]} 4. e3 {[%clk 0:02:58.9]} 4... c6 {[%clk 0:02:50.9]} 5. Nd2 {[%clk
0:02:58.3]} 5... d5 {[%clk 0:02:50.9]} 6. Bd3 {[%clk 0:02:58.5]} 6... Bd6 {[%clk
0:02:51.2]} 7. Ne2 {[%clk 0:02:58.6]} 7... Nd7 {[%clk 0:02:45.9]} 8. a3 {[%clk
0:02:58.8]} 8... O-O {[%clk 0:02:45.5]} 9. b4 {[%clk 0:02:57.9]} 9... Re8 {[%clk
0:02:45.3]} 10. O-O {[%clk 0:02:57.7]} 10... Nf8 {[%clk 0:02:44.9]} 11. c4
{[%clk 0:02:57.7]} 11... Be6 {[%clk 0:02:32.2]} 12. cxd5 {[%clk 0:02:55.3]}
12... Bxd5 {[%clk 0:02:30.7]} 13. e4 {[%clk 0:02:54.9]} 13... Be6 {[%clk
0:02:28]} 14. f4 {[%clk 0:02:45]} 14... Rc8 {[%clk 0:02:20.1]} 15. Kh1 {[%clk
0:02:38.5]} 15... Bb8 {[%clk 0:02:03.1]} 16. Rc1 {[%clk 0:02:37.9]} 16... g5
{[%clk 0:01:31.6]} 17. Qe1 {[%clk 0:02:33.1]} 17... Qc7 {[%clk 0:01:26.9]} 18.
Nf3 {[%clk 0:02:16.6]} 18... gxf4 {[%clk 0:01:20.9]} 19. Qh4 {[%clk 0:02:16.1]}
19... Kg7 {[%clk 0:01:12.2]} 20. e5 {[%clk 0:02:13]} 20... fxe5 {[%clk
0:01:07.3]} 21. Nxe5 {[%clk 0:02:09.7]} 21... Nh7 {[%clk 0:00:52.9]} 22. Nxf4
{[%clk 0:02:04.3]} 22... Bd5 {[%clk 0:00:38.9]} 23. Nh5+ {[%clk 0:01:59.6]}
23... Kh8 {[%clk 0:00:35.1]} 24. Bxh7 {[%clk 0:01:55.3]} 24... Kxh7 {[%clk
0:00:34.7]} 25. Nf6+ {[%clk 0:01:55]} 25... Kg7 {[%clk 0:00:29.9]} 26. Nxd5
{[%clk 0:01:47.7]} 26... Rxe5 {[%clk 0:00:23.6]} 27. Nxc7 {[%clk 0:01:46.4]}
27... Rg5 {[%clk 0:00:16.7]} 28. d5 {[%clk 0:01:01]} 28... Bxc7 {[%clk
0:00:14.2]} 29. dxc6 {[%clk 0:01:00]} 29... Bd8 {[%clk 0:00:10.9]} 30. cxb7
{[%clk 0:00:51.8]} 30... Rb8 {[%clk 0:00:07.9]} 31. Qd4+ {[%clk 0:00:45.6]}
31... Bf6 {[%clk 0:00:05.3]} 32. Qxf6+ {[%clk 0:00:44.1]} 1-0

[Event "Early-Titled-Tuesday-Blitz-April-23-2024"]
[Site "Chess.com"]
[Date "2024.04.23"]
[Round "7"]
[White "esrosenberg"]
[Black "Payyappat"]
[Result "0-1"]
[WhiteElo "2322"]
[BlackElo "2520"]
[TimeControl "180+1"]
[EndTime "9:19:33 PDT"]
[Termination "Payyappat won on time"]

1. e4 {[%clk 0:03:00.9]} 1... c6 {[%clk 0:02:59.8]} 2. Nf3 {[%clk 0:02:57.8]}
2... d5 {[%clk 0:03:00.7]} 3. d3 {[%clk 0:02:57.5]} 3... Bg4 {[%clk 0:02:59]} 4.
h3 {[%clk 0:02:53.5]} 4... Bxf3 {[%clk 0:02:58.8]} 5. Qxf3 {[%clk 0:02:52.1]}
5... e5 {[%clk 0:02:59.7]} 6. g3 {[%clk 0:02:42.4]} 6... Nf6 {[%clk 0:02:58.2]}
7. Bg2 {[%clk 0:02:41.2]} 7... Bd6 {[%clk 0:02:50.6]} 8. O-O {[%clk 0:02:39.7]}
8... O-O {[%clk 0:02:49.9]} 9. Nd2 {[%clk 0:02:34.8]} 9... Nbd7 {[%clk
0:02:50.4]} 10. Re1 {[%clk 0:02:32.3]} 10... Re8 {[%clk 0:02:48.8]} 11. a4
{[%clk 0:02:13.6]} 11... Qb6 {[%clk 0:02:44.5]} 12. a5 {[%clk 0:02:11.7]} 12...
Qc7 {[%clk 0:02:40.6]} 13. c3 {[%clk 0:02:01.7]} 13... b6 {[%clk 0:02:40.1]} 14.
b4 {[%clk 0:01:59.4]} 14... bxa5 {[%clk 0:02:38.3]} 15. bxa5 {[%clk 0:01:58.9]}
15... Rab8 {[%clk 0:02:38.9]} 16. d4 {[%clk 0:01:49.3]} 16... Rb5 {[%clk
0:02:35]} 17. a6 {[%clk 0:01:34.8]} 17... Qb6 {[%clk 0:02:32.7]} 18. c4 {[%clk
0:01:28.3]} 18... Qxd4 {[%clk 0:02:23.9]} 19. cxb5 {[%clk 0:01:24.6]} 19... Qxa1
{[%clk 0:02:18.2]} 20. bxc6 {[%clk 0:01:25.1]} 20... Nb6 {[%clk 0:02:14]} 21.
exd5 {[%clk 0:01:12.4]} 21... e4 {[%clk 0:02:09.6]} 22. Nxe4 {[%clk 0:01:04.1]}
22... Rxe4 {[%clk 0:01:58.2]} 23. Rf1 {[%clk 0:00:42.4]} 23... Qxa6 {[%clk
0:01:28.3]} 24. Bb2 {[%clk 0:00:29.7]} 24... Nbxd5 {[%clk 0:01:24.2]} 25. Ra1
{[%clk 0:00:19]} 25... Qxc6 {[%clk 0:01:17.4]} 26. Rxa7 {[%clk 0:00:18.4]} 26...
Re8 {[%clk 0:01:06]} 27. Bxf6 {[%clk 0:00:15.9]} 27... Qc1+ {[%clk 0:01:05.5]}
28. Kh2 {[%clk 0:00:14.8]} 28... Nxf6 {[%clk 0:01:05.8]} 29. Qb3 {[%clk
0:00:12.4]} 29... Rf8 {[%clk 0:01:05.8]} 30. Bf3 {[%clk 0:00:03.8]} 30... Qe1
{[%clk 0:00:59.3]} 31. Kg2 {[%clk 0:00:02.5]} 31... Bc5 {[%clk 0:00:55]} 32. Ra2
{[%clk 0:00:02.5]} 32... h6 {[%clk 0:00:52]} 33. Re2 {[%clk 0:00:02.6]} 33...
Qb4 {[%clk 0:00:50.5]} 34. Qd3 {[%clk 0:00:01.8]} 34... Qd4 {[%clk 0:00:50.1]}
35. Qf5 {[%clk 0:00:01.5]} 35... Bb6 {[%clk 0:00:39.8]} 36. g4 {[%clk
0:00:01.1]} 36... Nh7 {[%clk 0:00:38.1]} 0-1

[Event "Early-Titled-Tuesday-Blitz-April-23-2024"]
[Site "Chess.com"]
[Date "2024.04.23"]
[Round "7"]
[White "AccioChess"]
[Black "chess_sharparchitect"]
[Result "1-0"]
[WhiteElo "2439"]
[BlackElo "2229"]
[TimeControl "180+1"]
[EndTime "9:19:33 PDT"]
[Termination "AccioChess won on time"]

1. e4 {[%clk 0:02:58.1]} 1... c5 {[%clk 0:02:59.5]} 2. Nf3 {[%clk 0:02:57.2]}
2... d6 {[%clk 0:02:59.4]} 3. c3 {[%clk 0:02:56.5]} 3... Nf6 {[%clk 0:02:57.8]}
4. Be2 {[%clk 0:02:55.1]} 4... e6 {[%clk 0:02:53.2]} 5. O-O {[%clk 0:02:54.6]}
5... Be7 {[%clk 0:02:49]} 6. Re1 {[%clk 0:02:53.2]} 6... O-O {[%clk 0:02:44.9]}
7. Bf1 {[%clk 0:02:52.9]} 7... e5 {[%clk 0:02:39.8]} 8. a4 {[%clk 0:02:48.9]}
8... Nc6 {[%clk 0:02:31.6]} 9. Na3 {[%clk 0:02:48.1]} 9... Re8 {[%clk
0:02:25.9]} 10. Bc4 {[%clk 0:02:37.2]} 10... Be6 {[%clk 0:02:23.2]} 11. d3
{[%clk 0:02:36.1]} 11... d5 {[%clk 0:02:14]} 12. exd5 {[%clk 0:02:25]} 12...
Bxd5 {[%clk 0:02:13.9]} 13. Nxe5 {[%clk 0:02:22.2]} 13... Nxe5 {[%clk
0:01:50.4]} 14. Rxe5 {[%clk 0:02:23.1]} 14... Bc6 {[%clk 0:01:50.1]} 15. Qb3
{[%clk 0:02:02.6]} 15... Rf8 {[%clk 0:01:31.7]} 16. Bg5 {[%clk 0:01:16.5]} 16...
Bd6 {[%clk 0:01:28.1]} 17. Bxf6 {[%clk 0:01:16.2]} 17... Qxf6 {[%clk 0:01:26.2]}
18. Re3 {[%clk 0:01:15.8]} 18... Qg5 {[%clk 0:00:44.5]} 19. g3 {[%clk
0:01:12.4]} 19... Qh5 {[%clk 0:00:41.2]} 20. Rae1 {[%clk 0:00:58.5]} 20... Qh3
{[%clk 0:00:40.5]} 21. Bd5 {[%clk 0:00:57.4]} 21... Bxd5 {[%clk 0:00:27]} 22.
Qxd5 {[%clk 0:00:58.3]} 22... Rad8 {[%clk 0:00:27.1]} 23. Qxb7 {[%clk 0:00:52]}
23... Rb8 {[%clk 0:00:21.4]} 24. Qd5 {[%clk 0:00:47.6]} 24... Rbd8 {[%clk
0:00:19.8]} 25. Qf3 {[%clk 0:00:47.1]} 25... h5 {[%clk 0:00:17.4]} 26. Nc4
{[%clk 0:00:46.4]} 26... Bc7 {[%clk 0:00:16.8]} 27. Re7 {[%clk 0:00:34.4]} 27...
Bb8 {[%clk 0:00:16.1]} 28. R1e4 {[%clk 0:00:32.8]} 28... Qc8 {[%clk 0:00:10]}
29. Qxh5 {[%clk 0:00:29.5]} 29... g6 {[%clk 0:00:10.7]} 30. Qh6 {[%clk
0:00:29.1]} 30... Rxd3 {[%clk 0:00:07]} 31. Rh4 {[%clk 0:00:28]} 31... Rd1+
{[%clk 0:00:06.1]} 32. Kg2 {[%clk 0:00:27.9]} 32... Qc6+ {[%clk 0:00:02.8]} 33.
Ree4 {[%clk 0:00:27.2]} 1-0

[Event "Early-Titled-Tuesday-Blitz-April-23-2024"]
[Site "Chess.com"]
[Date "2024.04.23"]
[Round "7"]
[White "LionelMessiFCB"]
[Black "Silent-Killer100"]
[Result "1-0"]
[WhiteElo "2485"]
[BlackElo "2598"]
[TimeControl "180+1"]
[EndTime "9:19:34 PDT"]
[Termination "LionelMessiFCB won by resignation"]

1. e4 {[%clk 0:03:00.9]} 1... c5 {[%clk 0:02:59.9]} 2. Nf3 {[%clk 0:03:00.7]}
2... d6 {[%clk 0:03:00.2]} 3. d4 {[%clk 0:02:59.7]} 3... cxd4 {[%clk 0:03:01.1]}
4. Nxd4 {[%clk 0:03:00.1]} 4... Nf6 {[%clk 0:03:01.6]} 5. Nc3 {[%clk 0:03:00.2]}
5... a6 {[%clk 0:03:01]} 6. Bg5 {[%clk 0:02:59.7]} 6... e6 {[%clk 0:03:00.9]} 7.
f4 {[%clk 0:02:59.3]} 7... Nbd7 {[%clk 0:02:59.7]} 8. Qe2 {[%clk 0:02:58.4]}
8... Be7 {[%clk 0:02:58.2]} 9. e5 {[%clk 0:02:40.3]} 9... dxe5 {[%clk
0:02:58.4]} 10. fxe5 {[%clk 0:02:40]} 10... Nd5 {[%clk 0:02:57.3]} 11. Bxe7
{[%clk 0:02:36.6]} 11... Nxe7 {[%clk 0:02:57.1]} 12. O-O-O {[%clk 0:02:35.9]}
12... Qa5 {[%clk 0:02:54.8]} 13. Nb3 {[%clk 0:02:28.9]} 13... Qc7 {[%clk
0:02:19.7]} 14. Ne4 {[%clk 0:02:27.8]} 14... Qxe5 {[%clk 0:02:06.4]} 15. Nd6+
{[%clk 0:02:27.1]} 15... Kf8 {[%clk 0:02:05.8]} 16. Nxc8 {[%clk 0:02:26]} 16...
Qxe2 {[%clk 0:01:22.3]} 17. Bxe2 {[%clk 0:02:25.3]} 17... Nf6 {[%clk 0:01:18.4]}
18. Nb6 {[%clk 0:02:08.9]} 18... Rb8 {[%clk 0:01:15.5]} 19. Rhf1 {[%clk
0:02:07]} 19... Nc6 {[%clk 0:01:10.4]} 20. Nc5 {[%clk 0:02:02.6]} 20... Ke7
{[%clk 0:01:07.4]} 21. Ncd7 {[%clk 0:01:52.2]} 21... Rbd8 {[%clk 0:01:00.6]} 22.
Nxf6 {[%clk 0:01:51.2]} 22... gxf6 {[%clk 0:01:01.5]} 23. c3 {[%clk 0:01:48]}
23... Ne5 {[%clk 0:00:54.1]} 24. Bf3 {[%clk 0:01:38.9]} 24... Rhg8 {[%clk
0:00:51.9]} 25. Rxd8 {[%clk 0:01:33.4]} 25... Kxd8 {[%clk 0:00:51.6]} 26. a4
{[%clk 0:01:24.2]} 26... Kc7 {[%clk 0:00:46.3]} 27. a5 {[%clk 0:01:23.9]} 27...
Nxf3 {[%clk 0:00:46.6]} 28. Rxf3 {[%clk 0:01:23.1]} 28... Rxg2 {[%clk
0:00:47.5]} 29. Rxf6 {[%clk 0:01:22.1]} 29... Rxh2 {[%clk 0:00:46.1]} 30. Rxf7+
{[%clk 0:01:21.4]} 30... Kc6 {[%clk 0:00:46.4]} 31. Re7 {[%clk 0:01:16.5]} 31...
Rh5 {[%clk 0:00:26.1]} 32. Rxe6+ {[%clk 0:01:14.8]} 32... Kb5 {[%clk 0:00:25.9]}
33. Kc2 {[%clk 0:01:06.8]} 33... Kxa5 {[%clk 0:00:24.6]} 34. b4+ {[%clk
0:00:59.3]} 34... Kb5 {[%clk 0:00:24]} 35. Kb3 {[%clk 0:00:59.4]} 35... a5
{[%clk 0:00:10.7]} 36. c4+ {[%clk 0:00:50]} 36... Ka6 {[%clk 0:00:10.6]} 37.
Nc8+ {[%clk 0:00:49.5]} 1-0

[Event "Early-Titled-Tuesday-Blitz-April-23-2024"]
[Site "Chess.com"]
[Date "2024.04.23"]
[Round "7"]
[White "vedantgoswami"]
[Black "Barmen_EV"]
[Result "1-0"]
[WhiteElo "2362"]
[BlackElo "2533"]
[TimeControl "180+1"]
[EndTime "9:19:37 PDT"]
[Termination "vedantgoswami won by checkmate"]

1. b3 {[%clk 0:03:00.9]} 1... a5 {[%clk 0:02:55.4]} 2. a3 {[%clk 0:02:58.4]}
2... a4 {[%clk 0:02:56.3]} 3. b4 {[%clk 0:02:56.6]} 3... e5 {[%clk 0:02:56.8]}
4. Bb2 {[%clk 0:02:55.7]} 4... d6 {[%clk 0:02:57]} 5. c4 {[%clk 0:02:54.7]} 5...
Nf6 {[%clk 0:02:56.4]} 6. e3 {[%clk 0:02:53.6]} 6... Be7 {[%clk 0:02:55.5]} 7.
Nf3 {[%clk 0:02:52.1]} 7... O-O {[%clk 0:02:55]} 8. d4 {[%clk 0:02:51.9]} 8...
e4 {[%clk 0:02:51.5]} 9. Nfd2 {[%clk 0:02:48.5]} 9... Bf5 {[%clk 0:02:51.3]} 10.
Nc3 {[%clk 0:02:48.1]} 10... c6 {[%clk 0:02:50.6]} 11. Nxa4 {[%clk 0:02:43.3]}
11... Nbd7 {[%clk 0:02:49.5]} 12. Nc3 {[%clk 0:02:42.8]} 12... Re8 {[%clk
0:02:48.4]} 13. Be2 {[%clk 0:02:42.2]} 13... Bf8 {[%clk 0:02:46.7]} 14. g4
{[%clk 0:02:39.5]} 14... Bg6 {[%clk 0:02:45.8]} 15. h4 {[%clk 0:02:38.5]} 15...
h5 {[%clk 0:02:42.3]} 16. gxh5 {[%clk 0:02:32.1]} 16... Bf5 {[%clk 0:02:41.9]}
17. Rg1 {[%clk 0:02:28]} 17... Kh7 {[%clk 0:02:41.6]} 18. Qc2 {[%clk 0:02:26.3]}
18... c5 {[%clk 0:02:38.2]} 19. bxc5 {[%clk 0:02:17.8]} 19... dxc5 {[%clk
0:02:39.1]} 20. d5 {[%clk 0:02:18.3]} 20... Ne5 {[%clk 0:02:36.3]} 21. Rg5
{[%clk 0:02:10.4]} 21... Qd7 {[%clk 0:02:31.9]} 22. Ncxe4 {[%clk 0:01:47.4]}
22... Nxe4 {[%clk 0:02:29.4]} 23. Nxe4 {[%clk 0:01:46.8]} 23... Kh8 {[%clk
0:02:17.4]} 24. h6 {[%clk 0:01:07.3]} 24... f6 {[%clk 0:02:13.8]} 25. hxg7+
{[%clk 0:01:04.6]} 25... Bxg7 {[%clk 0:02:14.7]} 26. Rh5+ {[%clk 0:01:00.7]}
26... Bh7 {[%clk 0:02:12.9]} 27. Nxc5 {[%clk 0:00:53.6]} 27... Bh6 {[%clk
0:01:51.9]} 28. Rxh6 {[%clk 0:00:47.7]} 28... Qg7 {[%clk 0:01:52.2]} 29. Rh5
{[%clk 0:00:37]} 29... Kg8 {[%clk 0:01:37.2]} 30. Rxh7 {[%clk 0:00:35.9]} 30...
Qxh7 {[%clk 0:01:37]} 31. Qxh7+ {[%clk 0:00:34.9]} 31... Kxh7 {[%clk 0:01:37.9]}
32. Ne6 {[%clk 0:00:28.9]} 32... Rg8 {[%clk 0:01:34.6]} 33. Bxe5 {[%clk
0:00:25.8]} 33... fxe5 {[%clk 0:01:34.6]} 34. Bd3+ {[%clk 0:00:25.7]} 34... Kh6
{[%clk 0:01:34.1]} 35. Ke2 {[%clk 0:00:24.1]} 35... Rg2 {[%clk 0:01:33.4]} 36.
d6 {[%clk 0:00:20]} 36... e4 {[%clk 0:01:21.9]} 37. Bxe4 {[%clk 0:00:19.4]}
37... Rh2 {[%clk 0:01:04.6]} 38. d7 {[%clk 0:00:18.9]} 38... Rxh4 {[%clk
0:01:05.4]} 39. f4 {[%clk 0:00:18.4]} 39... Rh2+ {[%clk 0:01:05.1]} 40. Kd3
{[%clk 0:00:17.4]} 40... b5 {[%clk 0:00:58.6]} 41. c5 {[%clk 0:00:16.1]} 41...
b4 {[%clk 0:00:58.3]} 42. d8=Q {[%clk 0:00:15.5]} 42... Rxd8+ {[%clk 0:00:58.7]}
43. Nxd8 {[%clk 0:00:15.7]} 43... b3 {[%clk 0:00:59.4]} 44. Rb1 {[%clk
0:00:15.2]} 44... b2 {[%clk 0:00:59.9]} 45. c6 {[%clk 0:00:15.1]} 45... Re2
{[%clk 0:00:59.9]} 46. Kxe2 {[%clk 0:00:13]} 46... Kg7 {[%clk 0:01:00.6]} 47.
Rxb2 {[%clk 0:00:12.9]} 47... Kf6 {[%clk 0:01:01.5]} 48. c7 {[%clk 0:00:13]}
48... Ke7 {[%clk 0:01:02.4]} 49. c8=Q {[%clk 0:00:12]} 49... Kf8 {[%clk
0:01:03.3]} 50. Rb7 {[%clk 0:00:10.2]} 50... Kg8 {[%clk 0:01:02.8]} 51. Nc6#
{[%clk 0:00:10.1]} 1-0